bitfinex-derivatives/quotes_ETHF0:USTF0_20260113
["timestamp","ask_amount","ask_price","bid_price","bid_amount"]
[1768292710150,1.29463787,3130.6,3130.0,1.09015287]
[1768292710345,0.13837275,3131.0,3130.2,1.09015287]
[1768292710552,1.05252325,3130.9,3130.4,1.09015287]
[1768292710852,1.05252325,3130.9,3129.6,1.09015287]
[1768292710853,0.9141505,3130.8,3130.2,1.09015287]
[1768292711053,0.9141505,3130.7,3130.2,1.09015287]
[1768292711255,0.13837275,3130.9,3130.2,1.09015287]
[1768292711454,0.91415344,3130.8,3130.2,1.09015287]
[1768292711753,0.91415344,3130.7,3130.2,1.09015287]
[1768292712049,0.13837275,3130.9,3130.2,1.09015287]
[1768292712252,0.91415348,3130.8,3130.2,1.09015287]
[1768292712452,0.91415348,3130.7,3130.2,1.09015287]
[1768292712752,0.13837275,3130.9,3130.2,1.09015287]
[1768292713052,0.91416414,3130.8,3130.2,1.09015287]
[1768292713245,0.91416414,3130.7,3130.2,1.09015287]
[1768292713445,0.13837275,3130.9,3130.2,1.09015287]
[1768292713646,0.91412519,3130.8,3130.2,1.09015287]
[1768292713848,1.09303015,3131.1,3130.2,1.09015287]
[1768292714157,0.91412075,3131.0,3130.4,1.09015287]
[1768292714352,0.91412075,3130.9,3130.4,1.09015287]
[1768292714554,0.91412075,3130.8,3130.4,1.09015287]
[1768292714753,0.14125003,3131.1,3130.4,1.09015287]
[1768292714944,0.91407801,3131.0,3130.4,1.09015287]
[1768292715146,0.91407801,3130.9,3130.4,1.09015287]
[1768292715346,0.14125003,3131.1,3130.4,1.09015287]
[1768292715552,0.91404473,3131.0,3130.4,1.09015287]
[1768292715754,0.91404473,3130.9,3130.4,1.09015287]
[1768292715954,0.14125003,3131.1,3130.4,1.09015287]
[1768292716154,0.91404473,3131.0,3130.4,1.09015287]
[1768292716352,0.91404473,3130.9,3130.4,1.09015287]
[1768292716553,0.00287728,3131.1,3130.6,1.09015287]
[1768292716755,0.91400507,3131.0,3130.6,1.09380989]
[1768292716956,0.91400507,3130.9,3130.6,0.00365702]
[1768292717154,0.00287728,3131.1,3130.6,0.00365702]
[1768292717355,0.91398339,3131.0,3130.6,0.00365702]
[1768292717554,0.91398339,3130.9,3130.6,0.00365702]
[1768292717754,0.00287728,3131.1,3130.6,0.00365702]
[1768292717955,0.91396483,3131.0,3130.6,0.00365702]
[1768292718150,0.91396483,3130.9,3130.6,0.00365702]
[1768292718350,0.00287728,3131.1,3130.6,0.00365702]
[1768292718552,0.91392514,3131.0,3130.6,0.00365702]
[1768292718751,0.91392514,3130.9,3130.6,0.00365702]
[1768292718958,0.00287728,3131.1,3130.6,0.00365702]
[1768292719158,0.91392514,3131.0,3130.6,0.00365702]
[1768292719359,0.91392514,3130.9,3130.6,0.00365702]
[1768292719552,0.00287728,3131.1,3130.6,0.00365702]
[1768292719753,0.91388651,3131.0,3130.6,0.00365702]
[1768292719953,0.91388651,3130.9,3130.6,0.00365702]
[1768292720154,0.1499745,3131.1,3130.6,0.00365702]
[1768292720454,0.91385763,3131.0,3130.6,0.00365702]
[1768292720654,0.91385763,3130.9,3130.6,0.00365702]
[1768292720851,0.1499745,3131.1,3130.6,0.00365702]
[1768292721053,0.14709722,3130.9,3130.6,0.00365702]
[1768292721258,0.14709722,3130.9,3130.1,1.09015287]
[1768292721758,1.09015287,3130.8,3129.9,1.09015287]
[1768292722152,1.09015287,3130.8,3129.9,1.09261639]
[1768292722355,1.23725009,3130.6,3129.9,0.00246352]
[1768292722558,1.09015287,3130.8,3129.6,1.09015287]
[1768292722559,1.23725009,3130.4,3129.6,1.09015287]
[1768292722954,0.14709722,3130.4,3129.6,1.09015287]
[1768292723361,0.14709722,3130.4,3129.8,1.09015287]
[1768292723563,0.14709722,3130.4,3129.8,1.09247384]
[1768292724664,1.09015287,3130.7,3129.8,1.09247384]
[1768292724861,0.91388929,3130.6,3129.8,1.09247384]
[1768292725062,0.91388929,3130.5,3129.8,1.09247384]
[1768292725257,1.09015287,3130.7,3129.8,1.09247384]
[1768292725457,0.91389887,3130.6,3129.8,1.09247384]
[1768292725764,0.91389887,3130.5,3129.8,1.09247384]
[1768292725963,1.09015287,3130.7,3129.8,1.09247384]
[1768292726164,0.91389887,3130.6,3129.8,1.09247384]
[1768292726463,0.91389887,3130.5,3129.8,1.09247384]
[1768292726665,1.09015287,3130.7,3129.8,1.09247384]
[1768292726966,0.91391053,3130.6,3129.8,1.09247384]
[1768292727167,0.91391053,3130.5,3129.8,1.09247384]
[1768292727360,1.09015287,3130.7,3129.8,1.09247384]
[1768292727660,0.91392447,3130.6,3129.8,1.09247384]
[1768292727860,0.91392447,3130.5,3129.8,1.09247384]
[1768292728057,1.09015287,3130.7,3129.8,1.09247384]
[1768292728253,0.91392447,3130.6,3129.8,1.09247384]
[1768292728458,0.91392447,3130.5,3129.8,1.09247384]
[1768292728654,1.09015287,3130.7,3129.8,1.09247384]
[1768292728859,0.91394044,3130.6,3129.8,1.09247384]
[1768292729157,0.91394044,3130.5,3129.8,1.09247384]
[1768292729367,1.09015287,3130.7,3129.8,1.09247384]
[1768292729567,0.9139587,3130.6,3129.8,1.09247384]
[1768292729771,0.9139587,3130.5,3129.8,1.09247384]
[1768292730066,1.09015287,3130.7,3129.8,1.09247384]
[1768292730268,0.91369825,3130.6,3129.8,1.09247384]
[1768292730469,0.91369825,3130.5,3129.8,1.09247384]
[1768292730662,1.09015287,3130.7,3129.8,1.09247384]
[1768292730864,0.91373762,3130.6,3129.8,1.09247384]
[1768292731065,0.91373762,3130.5,3129.8,1.09247384]
[1768292731265,1.09015287,3130.7,3129.8,0.00232097]
[1768292731566,0.91378345,3130.6,3129.8,0.00232097]
[1768292731762,0.91378345,3130.5,3129.8,0.00232097]
[1768292731962,0.14709722,3130.8,3129.8,0.00232097]
[1768292732164,0.91378068,3130.7,3129.8,0.00232097]
[1768292732366,0.91378068,3130.6,3129.8,0.00232097]
[1768292732566,0.91378068,3130.5,3129.8,0.00232097]
[1768292732767,0.14709722,3130.8,3129.8,0.00232097]
[1768292732965,0.91382682,3130.7,3129.8,0.00232097]
[1768292733166,0.14709722,3130.8,3129.8,0.00232097]
[1768292733167,0.91382682,3130.6,3129.8,0.00232097]
[1768292733364,0.91382682,3130.5,3129.8,0.00232097]
[1768292733661,0.14709722,3130.8,3129.8,0.00232097]
[1768292733958,0.91387501,3130.7,3129.8,0.00232097]
[1768292734162,0.91387501,3130.6,3129.8,0.00232097]
[1768292734461,0.91387501,3130.5,3129.8,0.00232097]
[1768292734662,0.14709722,3130.8,3129.8,0.00232097]
[1768292734871,0.913931,3130.7,3129.8,0.00232097]
[1768292735173,0.913931,3130.6,3129.8,0.00232097]
[1768292735370,0.913931,3130.5,3129.8,0.00232097]
[1768292735560,0.14709722,3130.8,3129.8,0.00232097]
[1768292735763,0.91399271,3130.7,3129.8,0.00232097]
[1768292735960,0.91399271,3130.6,3129.8,0.00232097]
[1768292736160,0.91399271,3130.5,3129.8,0.00232097]
[1768292736365,0.14709722,3130.8,3129.8,0.00232097]
[1768292736560,0.91412064,3130.7,3129.8,0.00232097]
[1768292736765,0.91412064,3130.6,3129.8,0.00232097]
[1768292736965,0.91412064,3130.5,3129.8,0.00232097]
[1768292737166,0.14709722,3130.8,3129.8,0.00232097]
[1768292737364,0.91412064,3130.7,3129.8,0.00232097]
[1768292737567,0.91412064,3130.6,3129.8,0.00232097]
[1768292737767,0.91412064,3130.5,3129.8,0.00232097]
[1768292737970,0.14709722,3130.8,3129.8,0.00232097]
[1768292738174,0.91426508,3130.7,3129.8,0.00232097]
[1768292738377,0.91426508,3130.6,3129.8,0.00232097]
[1768292738569,0.91426508,3130.5,3129.8,0.00232097]
[1768292738775,0.14709722,3130.8,3129.8,0.00232097]
[1768292738974,0.91443018,3130.7,3129.8,0.00232097]
[1768292739276,0.00287728,3131.1,3130.2,1.09027099]
[1768292739472,0.91448424,3131.0,3130.2,1.09027099]
[1768292739775,0.91448424,3130.9,3130.2,1.09027099]
[1768292739976,0.91448424,3130.8,3130.2,1.09027099]
[1768292740176,0.00287728,3131.1,3130.2,1.09027099]
[1768292740470,0.91448043,3131.0,3130.2,1.09027099]
[1768292740671,0.91448043,3130.9,3129.8,0.00232097]
[1768292740874,0.91448043,3130.8,3130.2,1.09027099]
[1768292741068,0.00287728,3131.1,3130.2,1.09027099]
[1768292741269,0.9144735,3131.0,3130.2,1.09027099]
[1768292741468,0.9144735,3130.9,3130.2,1.09027099]
[1768292741674,0.9144735,3130.8,3130.2,1.09027099]
[1768292741878,0.00287728,3131.1,3130.2,1.09027099]
[1768292742073,0.91442475,3131.0,3130.2,1.09027099]
[1768292742272,0.91442475,3130.9,3130.2,1.09027099]
[1768292742584,0.91442475,3130.8,3130.2,1.09027099]
[1768292742778,0.00287728,3131.1,3130.2,1.09027099]
[1768292742981,0.91438058,3131.0,3130.2,1.09027099]
[1768292743177,0.91438058,3130.9,3130.2,1.09027099]
[1768292743367,0.91438058,3130.8,3130.2,1.09027099]
[1768292743571,0.00287728,3131.1,3130.2,1.09027099]
[1768292743771,0.91434354,3131.0,3130.2,1.09027099]
[1768292743977,0.91434354,3130.9,3130.2,1.09027099]
[1768292744178,0.91434354,3130.8,3130.2,1.09027099]
[1768292744381,0.00287728,3131.1,3130.2,1.09027099]
[1768292744566,0.91429293,3131.0,3130.2,1.09027099]
[1768292744766,0.91429293,3130.9,3130.2,1.09027099]
[1768292744971,0.00287728,3131.1,3130.2,1.09027099]
[1768292745278,0.91429293,3131.0,3130.2,1.09027099]
[1768292745579,0.91429293,3130.9,3130.2,1.09027099]
[1768292745878,0.00287728,3131.1,3130.4,1.09027099]
[1768292746078,0.91426827,3131.0,3130.4,1.09027099]
[1768292746279,0.91426827,3130.9,3130.4,1.09027099]
[1768292746479,0.00287728,3131.1,3130.4,1.09027099]
[1768292746779,0.9142419,3131.0,3130.4,1.09027099]
[1768292747077,0.9142419,3130.9,3130.4,1.09027099]
[1768292747278,0.00287728,3131.1,3130.4,1.09027099]
[1768292747471,0.91422472,3131.0,3129.8,0.00232097]
[1768292747779,0.91422472,3130.9,3130.1,1.09027099]
[1768292747981,0.14991008,3131.1,3129.9,1.09027099]
[1768292748178,0.1470328,3130.9,3129.8,0.00232097]
[1768292748377,1.06128283,3130.8,3129.8,0.00232097]
[1768292748577,0.1470328,3130.8,3129.8,0.00232097]
[1768292749473,1.06135041,3130.7,3129.8,0.00232097]
[1768292749777,0.1470328,3130.6,3129.8,0.00232097]
[1768292754187,0.1470328,3130.6,3129.8,1.09259196]
[1768292759289,0.14991008,3131.1,3130.0,1.09027099]
[1768292759585,0.91461059,3131.0,3130.0,1.09027099]
[1768292759786,0.91461059,3130.9,3130.0,1.09027099]
[1768292759986,0.91461059,3130.8,3130.0,1.09027099]
[1768292760287,0.1470328,3131.0,3130.3,1.09027099]
[1768292760585,0.91679059,3130.9,3130.3,1.09027099]
[1768292760785,0.00287728,3131.1,3130.3,1.09027099]
[1768292760986,0.91678924,3131.0,3130.3,1.09027099]
[1768292761186,0.91678924,3130.9,3130.3,1.09027099]
[1768292761387,0.91678924,3130.8,3130.3,1.09027099]
[1768292761683,0.00287728,3131.1,3130.3,1.09027099]
[1768292761878,0.92688867,3131.0,3130.3,1.09027099]
[1768292762076,0.92688867,3130.9,3130.3,1.09027099]
[1768292762279,0.92688867,3130.8,3130.3,1.09027099]
[1768292762485,0.00287728,3131.1,3130.3,1.09027099]
[1768292762686,0.92300574,3131.0,3130.3,1.09027099]
[1768292762886,0.92300574,3130.9,3130.3,1.09027099]
[1768292763094,0.00287728,3131.1,3130.3,1.09027099]
[1768292763286,0.91907995,3131.0,3130.4,1.09027099]
[1768292763485,0.00287728,3131.1,3130.4,1.09027099]
[1768292763486,0.91907995,3130.9,3130.4,1.09027099]
[1768292763789,0.00287728,3131.1,3130.4,1.09027099]
[1768292763988,0.91910374,3131.0,3130.4,1.09027099]
[1768292764191,0.91910374,3130.9,3130.4,1.09027099]
[1768292764386,0.00287728,3131.1,3130.4,1.09027099]
[1768292764590,0.91915175,3131.0,3130.4,1.09027099]
[1768292764889,0.91915175,3130.9,3130.4,1.09027099]
[1768292765098,0.00287728,3131.1,3130.4,1.09027099]
[1768292765289,0.91915175,3131.0,3130.4,1.09027099]
[1768292765479,0.91915175,3130.9,3130.4,1.09027099]
[1768292765683,0.00287728,3131.1,3130.4,1.09027099]
[1768292765883,0.91921911,3131.0,3130.4,1.09027099]
[1768292766080,0.91921911,3130.9,3130.4,1.09027099]
[1768292766291,0.00287728,3131.1,3130.4,1.09027099]
[1768292766492,0.91930946,3131.0,3130.4,1.09027099]
[1768292766790,0.91930946,3130.9,3130.4,1.09027099]
[1768292766992,0.00287728,3131.1,3130.4,1.09027099]
[1768292767291,0.91930951,3131.0,3130.4,1.09027099]
[1768292767491,0.91930951,3130.9,3130.0,1.09027099]
[1768292767687,1.0553345,3130.8,3129.8,0.00232097]
[1768292767892,0.91930951,3130.7,3129.8,0.00232097]
[1768292768589,1.0553345,3130.7,3129.8,0.00232097]
[1768292768796,1.0553345,3130.6,3129.8,0.00232097]
[1768292768996,0.13602499,3130.6,3129.8,0.00232097]
[1768292769300,0.13602499,3130.6,3129.8,1.09259196]
[1768292782202,0.00287728,3131.1,3129.8,1.09259196]
[1768292782501,0.14311152,3131.7,3130.7,1.09027099]
[1768292783204,0.14311152,3131.7,3130.5,1.09027099]
[1768292783395,0.14311152,3131.6,3130.2,1.09027099]
[1768292783596,0.14311152,3131.6,3130.4,1.09027099]
[1768292784091,0.14311152,3131.6,3130.3,1.09027099]
[1768292784304,0.14311152,3131.4,3130.0,1.09027099]
[1768292784803,0.14311152,3131.4,3130.2,1.09027099]
[1768292787699,0.14311152,3131.4,3130.4,1.09027099]
[1768292791297,0.14311152,3131.4,3130.6,1.08975374]
[1768292794411,1.04853959,3131.3,3130.6,1.08975374]
[1768292794709,0.14311152,3131.3,3130.6,1.08975374]
[1768292796511,0.14311152,3131.3,3130.2,1.08975374]
[1768292796704,0.14311152,3131.3,3130.6,1.08975374]
[1768292801724,0.14311152,3131.3,3130.8,1.08975374]
[1768292801912,0.14226512,3131.6,3131.0,1.08975374]
[1768292802221,0.14226512,3131.4,3131.0,1.08975374]
[1768292802421,0.90544402,3131.3,3131.0,1.08975374]
[1768292802722,0.14226512,3131.4,3131.0,1.08975374]
[1768292805323,0.14226512,3131.4,3130.8,1.08975374]
[1768292806323,0.90573501,3131.3,3130.8,1.08975374]
[1768292806526,0.14226512,3131.4,3130.8,1.08975374]
[1768292806824,0.90573501,3131.3,3130.8,1.08975374]
[1768292807014,0.14226512,3131.4,3130.8,1.08975374]
[1768292807217,0.90573501,3131.3,3130.8,1.08975374]
[1768292807421,0.14226512,3131.4,3130.8,1.08975374]
[1768292807620,0.90585289,3131.3,3130.8,1.08975374]
[1768292807823,0.14226512,3131.4,3130.8,1.08975374]
[1768292808230,0.90585361,3131.3,3130.8,1.08975374]
[1768292808430,0.14226512,3131.4,3130.8,1.08975374]
[1768292808632,0.90599826,3131.3,3130.8,1.08975374]
[1768292808824,0.14226512,3131.4,3130.8,1.08975374]
[1768292809025,0.90599759,3131.3,3130.8,1.08975374]
[1768292809228,0.14226512,3131.4,3130.8,1.08975374]
[1768292809433,0.90599759,3131.3,3130.8,1.08975374]
[1768292809633,0.14226512,3131.4,3130.8,1.08975374]
[1768292809936,0.90617811,3131.3,3130.8,1.08975374]
[1768292810125,0.14226512,3131.4,3130.8,1.08975374]
[1768292810334,0.90617795,3131.3,3130.8,1.08975374]
[1768292810533,0.90617795,3131.2,3130.8,1.08975374]
[1768292810722,0.14226512,3131.4,3130.8,1.08975374]
[1768292810921,0.91647184,3131.3,3130.8,1.08975374]
[1768292811124,0.91647184,3131.2,3130.8,1.08975374]
[1768292811320,0.14226512,3131.4,3130.8,1.08975374]
[1768292811522,0.91681211,3131.3,3130.8,1.08975374]
[1768292811726,1.09327691,3131.7,3130.8,1.08975374]
[1768292811727,0.14578829,3131.7,3131.2,1.08975374]
[1768292811937,0.00352317,3131.7,3131.2,1.08975374]
[1768292812134,0.14226512,3132.1,3131.4,1.08975374]
[1768292812735,0.14226512,3132.1,3130.8,1.08975374]
[1768292812928,0.14226512,3132.1,3131.2,1.08975374]
[1768292813126,0.14456696,3132.1,3131.2,1.08975374]
[1768292813936,1.23201886,3132.0,3131.1,1.08975374]
[1768292814340,1.08975374,3131.3,3129.9,4.02018935]
[1768292814532,0.14226512,3131.4,3130.7,1.08975374]
[1768292815726,0.14226512,3132.0,3131.3,1.08975374]
[1768292816129,1.23201886,3131.8,3130.9,1.08975374]
[1768292817742,1.08975374,3131.8,3130.9,1.08975374]
[1768292817942,0.00479555,3132.0,3131.5,1.08975374]
[1768292818137,0.00479555,3132.0,3131.3,1.08975374]
[1768292818339,1.23681441,3132.0,3131.1,1.08975374]
[1768292818532,1.23681441,3132.0,3130.9,1.08975374]
[1768292818533,1.08975374,3131.8,3130.9,1.08975374]
[1768292818737,1.08975374,3131.8,3131.1,1.08975374]
[1768292818939,1.23681441,3132.0,3131.1,1.08975374]
[1768292819738,1.08975374,3131.5,3130.6,1.08975374]
[1768292820038,1.23201886,3131.7,3130.7,1.08975374]
[1768292820349,1.23201886,3131.7,3130.9,1.08975374]
[1768292820838,1.23201886,3131.7,3130.7,1.08975374]
[1768292820839,0.14226512,3131.6,3130.7,1.08975374]
[1768292822143,1.08975374,3131.3,3129.8,0.00232097]
[1768292822348,0.14226512,3131.2,3130.5,1.08975374]
[1768292822543,0.14226512,3131.2,3130.4,1.08975374]
[1768292823045,1.08975374,3131.1,3129.8,0.00232097]
[1768292823350,1.08975374,3130.9,3130.1,1.08975374]
[1768292823547,1.23201886,3131.1,3130.1,1.08975374]
[1768292823748,0.91648911,3131.0,3130.1,1.08975374]
[1768292823949,1.23201886,3131.1,3130.1,1.08975374]
[1768292824148,0.91649662,3131.0,3130.1,1.08975374]
[1768292824451,0.14226512,3131.0,3130.1,1.08975374]
[1768292825352,0.14226512,3131.0,3130.3,1.08975374]
[1768292826752,0.13282331,3130.9,3130.0,1.08975374]
[1768292827055,1.08975374,3130.5,3129.8,0.00232097]
[1768292827251,0.13282331,3130.6,3129.8,1.09207471]
[1768292827442,0.13282331,3130.6,3129.8,0.00232097]
[1768292827647,0.13282331,3130.6,3129.7,1.08975374]
[1768292828154,0.13282331,3130.6,3129.8,1.08975374]
[1768292828754,0.13282331,3130.6,3129.8,1.09279694]
[1768292829057,0.13282331,3130.6,3129.8,0.0030432]
[1768292830964,1.08975374,3130.0,3128.4,4.02018935]
[1768292831146,1.22257705,3130.0,3129.1,1.08975374]
[1768292831345,0.13282331,3130.0,3129.3,1.08975374]
[1768292831956,0.13761886,3130.0,3129.3,1.09215292]
[1768292834164,1.2273726,3130.0,3129.3,0.00239918]
[1768292834364,0.13729145,3129.7,3128.4,1.08975374]
[1768292834560,0.13729145,3129.7,3128.9,1.08975374]
[1768292835454,0.13965448,3129.7,3128.9,1.09200778]
[1768292838862,0.13965448,3129.7,3129.1,1.08975374]
[1768292839261,0.13965448,3129.7,3128.9,0.00225404]
[1768292839565,0.13965448,3129.7,3128.9,1.09200778]
[1768292842070,1.22940822,3129.7,3128.9,1.09200778]
[1768292842263,1.22940822,3129.7,3128.9,0.00225404]
[1768292842470,1.22940822,3129.7,3129.0,1.08975374]
[1768292843166,1.22940822,3129.7,3128.9,1.09200778]
[1768292843357,1.22940822,3129.7,3128.9,0.00225404]
[1768292843560,1.22940822,3129.7,3128.9,1.09200778]
[1768292843880,0.13965448,3129.7,3128.9,1.09200778]
[1768292846073,0.13965448,3129.7,3129.0,1.08975374]
[1768292847867,0.13965448,3129.7,3128.9,1.09200778]
[1768292849871,0.13965448,3129.7,3129.1,1.08975374]
[1768292851267,0.13965448,3129.7,3128.9,0.00225404]
[1768292851676,0.13965448,3129.7,3128.5,1.09077969]
[1768292852770,0.13965448,3129.7,3128.5,1.09455923]
[1768292856575,0.13965448,3129.7,3128.5,0.00377954]
[1768292856870,0.13614773,3129.3,3128.2,1.09077969]
[1768292857265,0.13614773,3129.3,3128.4,1.09077969]
[1768292857869,0.13614773,3129.3,3128.4,1.09423814]
[1768292859068,0.13614773,3129.3,3128.4,0.00345845]
[1768292859275,0.13851076,3129.7,3128.5,1.09077969]
[1768292859471,0.92599087,3129.6,3128.5,1.09077969]
[1768292859670,0.92599087,3129.5,3128.5,1.09077969]
[1768292859871,0.92599087,3129.4,3128.5,1.09077969]
[1768292860074,0.92599087,3129.3,3128.4,0.00345845]
[1768292860371,0.92599087,3129.2,3128.5,1.09077969]
[1768292860573,0.13614773,3129.6,3128.5,1.09077969]
[1768292860773,1.06242327,3129.5,3128.5,1.09077969]
[1768292861071,0.92627554,3129.4,3128.5,1.09077969]
[1768292861275,1.06242327,3129.3,3128.4,0.00345845]
[1768292861574,1.06242327,3129.2,3128.4,0.00345845]
[1768292861774,0.13614773,3129.2,3128.4,0.00345845]
[1768292864268,0.92625918,3129.1,3128.1,1.09077969]
[1768292864575,0.13614773,3129.2,3128.1,1.09077969]
[1768292864762,0.92627029,3129.1,3128.1,1.09077969]
[1768292864968,0.13614773,3129.2,3128.1,1.09077969]
[1768292865168,0.92627029,3129.1,3128.1,1.09364411]
[1768292865470,0.13614773,3129.2,3128.1,1.09364411]
[1768292865676,0.92617381,3129.1,3128.1,1.09364411]
[1768292865870,0.13614773,3129.2,3128.1,1.09364411]
[1768292866072,0.9261728,3129.1,3128.1,1.09364411]
[1768292866273,0.13614773,3129.2,3128.1,1.09364411]
[1768292866473,0.92609424,3129.1,3128.1,1.09364411]
[1768292866774,0.13614773,3129.2,3128.3,1.09077969]
[1768292866975,0.92609316,3129.1,3128.3,1.09077969]
[1768292867175,0.13614773,3129.2,3128.3,1.09077969]
[1768292867376,0.92603987,3129.1,3128.1,0.00286442]
[1768292867678,0.13614773,3129.2,3128.3,1.09077969]
[1768292867872,0.92602766,3129.1,3128.3,1.09077969]
[1768292868072,0.13614773,3129.2,3128.3,1.09077969]
[1768292868274,0.9259954,3129.1,3128.3,1.09077969]
[1768292868575,0.13614773,3129.2,3128.3,1.09077969]
[1768292868774,0.13614773,3129.0,3128.1,0.00286442]
[1768292869078,0.92601162,3128.9,3128.1,0.00286442]
[1768292870778,0.13614773,3128.8,3128.1,0.00286442]
[1768292874679,0.13614773,3128.8,3128.1,1.09364411]
[1768292877390,0.13614773,3128.8,3127.5,1.09077969]
[1768292877681,0.13614773,3128.8,3127.7,1.09077969]
[1768292877874,0.13614773,3128.8,3127.2,1.25081969]
[1768292878079,0.13614773,3128.8,3127.7,1.09077969]
[1768292878475,0.13614773,3128.8,3127.7,1.09336814]
[1768292880882,0.13614773,3128.8,3127.9,1.09077969]
[1768292881993,0.13614773,3128.8,3127.7,0.00258845]
[1768292882182,0.13614773,3128.8,3127.8,1.09077969]
[1768292883987,0.13614773,3128.8,3127.7,0.00258845]
[1768292884189,0.13614773,3128.8,3127.8,1.09077969]
[1768292884587,0.13614773,3128.8,3127.7,0.00258845]
[1768292884884,0.13366445,3128.6,3127.7,0.00258845]
[1768292885190,0.13366445,3128.6,3127.7,1.09336814]
[1768292885689,0.13366445,3129.2,3128.1,1.09077969]
[1768292885882,0.13366445,3129.0,3128.1,1.09077969]
[1768292886086,0.92802926,3128.9,3128.1,1.09077969]
[1768292886285,0.92802926,3128.8,3128.4,1.09077969]
[1768292886586,0.13366445,3129.0,3128.2,1.09077969]
[1768292886787,0.92818547,3128.9,3128.2,1.09077969]
[1768292886982,0.13366445,3129.0,3127.7,0.00258845]
[1768292887190,0.92816375,3128.9,3128.1,1.09077969]
[1768292887487,0.13366445,3129.0,3128.1,1.09077969]
[1768292887789,0.92822293,3128.9,3128.1,1.09077969]
[1768292888088,0.13366445,3129.0,3128.1,1.09077969]
[1768292888283,0.92824797,3128.9,3128.1,1.09077969]
[1768292888482,0.13366445,3129.0,3128.1,1.09077969]
[1768292888789,0.92827189,3128.9,3128.1,1.09077969]
[1768292888981,0.13366445,3129.0,3128.1,1.09077969]
[1768292889183,0.92827188,3128.9,3128.1,1.09077969]
[1768292889383,0.13366445,3129.0,3128.1,1.09077969]
[1768292889687,1.06201251,3128.9,3128.1,1.09077969]
[1768292889890,0.13366445,3128.9,3127.9,1.09077969]
[1768292892089,0.928614,3128.8,3127.9,1.09077969]
[1768292892290,0.13366445,3128.9,3127.7,0.00258845]
[1768292892592,0.13366445,3128.7,3127.9,1.09077969]
[1768292893086,0.13366445,3128.7,3127.7,0.00258845]
[1768292893289,0.13366445,3128.7,3127.8,1.09077969]
[1768292907102,0.13366445,3128.7,3128.0,1.09077969]
[1768292908399,0.13366445,3128.7,3127.9,1.09077969]
[1768292911302,0.13366445,3128.7,3128.1,1.09144657]
[1768292915406,0.93716429,3128.6,3128.1,1.09144657]
[1768292915609,0.13580179,3128.6,3128.1,1.09144657]
[1768292918617,0.13580179,3128.6,3128.0,1.09144657]
[1768292920220,0.13580179,3128.6,3127.9,1.09144657]
[1768292920426,0.93749432,3128.5,3127.7,1.09403502]
[1768292920623,0.93749432,3128.4,3127.7,1.09403502]
[1768292920917,0.13580179,3128.6,3127.7,0.00258845]
[1768292921125,0.93749979,3128.5,3127.8,1.09144657]
[1768292921309,0.93749979,3128.4,3127.8,1.09144657]
[1768292921510,0.13580179,3128.6,3127.8,1.09144657]
[1768292921709,0.93730735,3128.5,3127.8,1.09144657]
[1768292921914,0.93730735,3128.4,3127.8,1.09144657]
[1768292922110,0.13580179,3128.6,3127.8,1.09144657]
[1768292922314,0.93730734,3128.5,3127.8,1.09144657]
[1768292922515,0.93730734,3128.4,3127.8,1.09144657]
[1768292922715,0.13580179,3128.6,3127.8,1.09144657]
[1768292922917,0.93718956,3128.5,3127.8,1.09144657]
[1768292923118,0.93718956,3128.4,3127.8,1.09144657]
[1768292923418,0.13580179,3128.6,3127.8,1.09144657]
[1768292923619,0.93709765,3128.5,3127.8,1.09144657]
[1768292923818,0.93709765,3128.4,3127.8,1.09144657]
[1768292924124,0.13580179,3128.6,3127.8,1.09144657]
[1768292924424,0.93709765,3128.5,3127.8,1.09144657]
[1768292924613,0.93709765,3128.4,3127.8,1.09144657]
[1768292924817,0.13580179,3128.6,3127.8,1.09144657]
[1768292925027,0.93702104,3128.5,3127.8,1.09144657]
[1768292925213,0.93702104,3128.4,3127.8,1.09144657]
[1768292925417,0.13580179,3128.6,3127.8,1.09144657]
[1768292925612,0.93696009,3128.5,3127.8,1.09144657]
[1768292925825,0.13580179,3128.3,3127.7,0.00258845]
[1768292926025,0.13580179,3128.3,3127.3,1.09144657]
[1768292926229,0.93699187,3128.2,3127.3,1.09144657]
[1768292926524,0.13580179,3128.3,3127.3,1.09144657]
[1768292926727,0.13580179,3128.3,3127.5,1.09144657]
[1768292926927,0.13580179,3128.3,3127.5,1.09533548]
[1768292927724,0.13580179,3128.3,3127.7,1.09144657]
[1768292928423,0.13580179,3128.3,3127.5,0.00388891]
[1768292928726,2.16369613,3128.2,3127.5,0.00388891]
[1768292928927,0.93644777,3128.1,3127.5,0.00388891]
[1768292929127,0.93644777,3128.1,3127.5,0.93373433]
[1768292930129,0.93644777,3128.1,3127.5,0.93770736]
[1768292930327,0.93644777,3128.1,3127.5,0.00397303]
[1768292930528,1.07224956,3128.1,3127.5,0.00397303]
[1768292930728,0.13580179,3128.1,3127.5,0.00397303]
[1768292932524,0.13580179,3128.7,3127.8,1.09144657]
[1768292932725,0.13580179,3128.5,3127.8,1.09144657]
[1768292932925,0.93564657,3128.4,3127.8,1.09144657]
[1768292933122,0.13580179,3128.2,3127.8,1.09144657]
[1768292933329,0.13580179,3128.2,3127.5,0.00397303]
[1768292933522,0.13580179,3128.2,3127.7,1.09144657]
[1768292936426,0.13580179,3128.2,3127.5,0.00397303]
[1768292936623,0.13580179,3128.2,3127.7,1.09144657]
[1768292937332,0.13580179,3128.2,3127.5,0.00397303]
[1768292937537,0.13580179,3128.2,3127.6,1.09144657]
[1768292940640,0.13580179,3128.2,3127.8,1.09144657]
[1768292942344,0.13580179,3128.2,3127.7,1.09144657]
[1768292942940,0.13580179,3128.6,3127.5,0.00397303]
[1768292943141,0.13580179,3128.4,3127.6,1.09144657]
[1768292943342,0.13580179,3128.4,3127.5,0.00397303]
[1768292943343,1.07209221,3128.3,3127.9,1.09144657]
[1768292943534,0.93629042,3128.2,3127.9,0.2318835]
[1768292943734,0.93629042,3128.2,3127.7,1.09144657]
[1768292943935,1.07209221,3128.2,3127.7,1.09144657]
[1768292944137,0.13580179,3128.7,3128.1,1.09144657]
[1768292944342,0.93629126,3128.6,3128.1,1.09144657]
[1768292944528,0.93629126,3128.5,3128.0,1.09144657]
[1768292944734,0.13580179,3128.7,3128.0,1.09144657]
[1768292944935,0.93636795,3128.6,3127.8,1.09144657]
[1768292945129,0.93636795,3128.5,3127.8,1.09144657]
[1768292945340,0.14421987,3128.6,3127.5,0.00397303]
[1768292945540,1.08069634,3128.5,3127.6,1.09144657]
[1768292945743,0.14421987,3128.5,3127.8,1.09144657]
[1768292945939,0.14421987,3128.5,3127.7,1.09144657]
[1768292946344,1.08081943,3128.4,3127.7,1.09144657]
[1768292946543,0.14421987,3128.4,3127.7,1.09144657]
[1768292950948,0.14421987,3128.4,3127.6,1.09144657]
[1768292952547,0.14421987,3128.4,3127.8,1.09144657]
[1768292954349,1.23566644,3128.8,3127.8,1.09144657]
[1768292954649,0.93735638,3128.7,3127.8,1.09144657]
[1768292954948,0.93735638,3128.6,3128.0,1.09144657]
[1768292955156,0.93735638,3128.5,3128.4,1.09144657]
[1768292955453,0.93735638,3128.5,3128.1,1.09144657]
[1768292955649,1.09144657,3129.1,3128.1,1.09144657]
[1768292955650,0.93735638,3128.4,3128.1,1.09144657]
[1768292955948,0.93735638,3128.4,3127.8,1.09144657]